bitfinex/quotes_SOLUSD_20240620
["timestamp","ask_amount","ask_price","bid_price","bid_amount"]
[1718851647815,0.68,134.67,134.55,28.626]
[1718851647816,16.334,134.66,134.55,28.626]
[1718851647983,20.0,134.65,134.56,20.0]
[1718851648409,20.0,134.65,134.56,42.35]
[1718851649000,20.0,134.65,134.57,45.0]
[1718851649506,20.0,134.65,134.56,20.0]
[1718851649507,0.34,134.64,134.56,20.0]
[1718851649686,0.68,134.64,134.56,20.0]
[1718851649887,0.68,134.64,134.53,270.2365]
[1718851649888,7.4281,134.63,134.53,16.6365]
[1718851650088,0.17,134.61,134.52,6.1685]
[1718851650382,7.5992,134.61,134.53,2.27567071]
[1718851650584,0.17,134.6,134.52,6.1685]
[1718851650783,15.3557,134.59,134.5,397.87]
[1718851650988,5.1687,134.58,134.47,15.47]
[1718851651190,7.4321,134.56,134.48,20.0]
[1718851651499,0.17,134.57,134.46,20.0]
[1718851651500,7.6014,134.57,134.46,20.0]
[1718851651801,0.34,134.55,134.45,28.4585]
[1718851652506,0.34,134.55,134.45,50.8085]
[1718851652714,0.34,134.55,134.46,0.17]
[1718851652903,0.34,134.55,134.46,45.0]
[1718851653090,4.6587,134.58,134.46,67.35]
[1718851653290,4.6587,134.58,134.48,44.64]
[1718851653605,0.34,134.57,134.49,20.0]
[1718851653802,0.34,134.57,134.47,42.35]
[1718851654122,0.34,134.57,134.47,20.0]
[1718851654123,0.17,134.57,134.47,20.0]
[1718851654298,0.17,134.56,134.48,45.0]
[1718851654496,0.34,134.56,134.49,20.0]
[1718851655513,0.34,134.56,134.48,45.0]
[1718851655718,0.34,134.56,134.47,45.17]
[1718851655900,0.34,134.56,134.48,20.0]
[1718851656103,0.34,134.56,134.49,45.0]
[1718851656507,7.6023,134.55,134.45,6.1685]
[1718851656706,0.34,134.54,134.45,6.1685]
[1718851657400,0.34,134.53,134.43,269.07]
[1718851657605,0.34,134.53,134.44,2.979258]
[1718851657792,4.6587,134.51,134.44,2.979258]
[1718851657987,4.6587,134.51,134.43,20.0]
[1718851658392,0.17,134.5,134.42,20.0]
[1718851658990,24.6587,134.51,134.42,22.35]
[1718851659395,20.0,134.51,134.44,0.17]
[1718851659896,16.2671,134.52,134.44,0.17]
[1718851660112,4.6587,134.54,134.44,0.17]
[1718851660319,4.6587,134.54,134.45,22.35]
[1718851660497,4.6587,134.54,134.46,65.0]
[1718851663211,0.17,134.52,134.41,6.2925]
[1718851663417,0.17,134.52,134.42,20.0]
[1718851663597,7.604,134.52,134.42,20.0]
[1718851663797,0.51,134.51,134.42,20.0]
[1718851664007,0.17,134.52,134.42,20.0]
[1718851664208,7.6039,134.52,134.42,20.0]
[1718851664519,27.9445,134.51,134.42,20.0]
[1718851664815,7.9445,134.51,134.42,20.0]
[1718851665309,0.17,134.49,134.39,15.0368]
[1718851665514,0.68,134.49,134.38,28.9652]
[1718851665715,20.68,134.49,134.38,28.9652]
[1718851666700,28.1157,134.49,134.38,28.9652]
[1718851667016,28.1157,134.49,134.38,6.6152]
[1718851667209,20.68,134.49,134.38,28.9652]
[1718851667519,15.0163,134.5,134.39,0.68]
[1718851668323,0.17,134.49,134.39,23.03]
[1718851668624,0.68,134.49,134.4,45.0]
[1718851668793,15.0163,134.5,134.41,20.17]
[1718851668996,15.0163,134.5,134.42,45.0]
[1718851669193,15.0163,134.5,134.43,1.48505985]
[1718851669805,15.0163,134.5,134.43,0.17]
[1718851670009,20.9351,134.54,134.43,43.03]
[1718851670214,20.9351,134.54,134.45,0.17]
[1718851670411,20.9351,134.54,134.45,42.69]
[1718851670613,20.9351,134.54,134.47,0.17]
[1718851670923,20.9351,134.54,134.47,20.34]
[1718851671324,20.9351,134.54,134.48,45.0]
[1718851673915,20.9351,134.54,134.45,6.3046]
[1718851674121,28.3679,134.54,134.46,65.0]
[1718851674313,20.9351,134.54,134.46,45.0]
[1718851675107,0.17,134.53,134.46,45.0]
[1718851675431,0.34,134.53,134.46,45.0]
[1718851675812,0.17,134.53,134.46,45.0]
[1718851676119,20.9351,134.54,134.46,45.0]
[1718851677412,20.9351,134.54,134.47,20.0]
[1718851680741,16.2764,134.54,134.48,46.48456841]
[1718851681035,4.6587,134.57,134.49,21.48445802]
[1718851681333,4.6587,134.57,134.5,45.0]
[1718851681527,4.6587,134.57,134.51,1.48423729]
[1718851682220,4.6587,134.57,134.51,21.48423729]
[1718851682425,4.6587,134.57,134.52,46.48412695]
[1718851684634,15.3181,134.58,134.52,46.48412695]
[1718851684835,4.6587,134.6,134.52,46.48412695]
[1718851684836,4.6587,134.6,134.53,20.17]
[1718851685025,16.4085,134.61,134.54,45.17]
[1718851685225,4.6587,134.64,134.56,0.17]
[1718851685436,4.6587,134.64,134.56,45.68]
[1718851685635,4.6587,134.64,134.56,45.0]
[1718851686340,12.0859,134.64,134.56,45.0]
[1718851687234,4.6587,134.64,134.55,20.0]
[1718851687418,0.68,134.63,134.54,20.0]
[1718851687618,0.68,134.63,134.55,45.0]
[1718851687819,8.1077,134.63,134.54,45.0]
[1718851688115,0.68,134.63,134.54,45.0]
[1718851688333,0.68,134.63,134.49,382.4]
[1718851688334,7.4302,134.59,134.49,382.4]
[1718851688517,15.7719,134.58,134.5,20.0]
[1718851688714,15.7719,134.58,134.5,22.35]
[1718851688919,23.2003,134.62,134.5,22.35]
[1718851689114,0.17,134.6,134.48,22.2792]
[1718851689420,0.17,134.58,134.48,22.2792]
[1718851689619,20.68,134.58,134.48,22.2792]
[1718851690017,7.4334,134.53,134.44,657.4379]
[1718851690220,0.68,134.54,134.44,382.4]
[1718851690438,0.17,134.53,134.44,382.4]
[1718851690617,7.7736,134.53,134.44,382.4]
[1718851690943,20.17,134.52,134.44,382.4]
[1718851691323,0.51,134.51,134.44,382.4]
[1718851691529,0.17,134.5,134.44,382.4]
[1718851692734,7.434,134.52,134.44,382.4]
[1718851693323,20.0,134.51,134.44,382.4]
[1718851694039,20.0,134.54,134.44,382.4]
[1718851694423,7.4328,134.54,134.44,382.4]
[1718851694638,20.0,134.53,134.44,382.4]
[1718851694841,0.17,134.5,134.41,6.2711]
[1718851695147,20.17,134.5,134.41,6.2711]
[1718851695448,0.17,134.49,134.41,6.2711]
[1718851695624,0.51,134.49,134.41,6.2711]
[1718851696249,28.3762,134.49,134.38,22.35]
[1718851696429,28.3762,134.49,134.39,65.0]
[1718851696827,20.9406,134.49,134.39,65.0]
[1718851698460,20.0,134.48,134.39,45.0]
[1718851698624,7.9471,134.47,134.34,388.6711]
[1718851698829,7.6077,134.45,134.34,6.2711]
[1718851699132,20.51,134.44,134.34,6.2711]
[1718851699847,20.0,134.44,134.34,28.6211]
[1718851700023,7.6071,134.47,134.35,0.51]
[1718851700224,0.17,134.45,134.35,45.0]
[1718851700549,20.17,134.45,134.35,45.0]
[1718851700755,0.17,134.45,134.35,67.35]
[1718851700945,0.34,134.45,134.35,45.0]
[1718851701146,0.51,134.44,134.35,45.0]
[1718851701938,0.17,134.45,134.35,0.17]
[1718851702135,0.17,134.47,134.37,0.17]
[1718851702339,20.0,134.48,134.37,0.17]
[1718851702848,20.4306,134.49,134.37,0.17]
[1718851703750,7.4372,134.46,134.36,45.51]
[1718851704050,0.51,134.45,134.36,45.51]
[1718851704236,20.17,134.47,134.36,67.86]
[1718851704431,20.0,134.47,134.37,0.17]
[1718851704631,20.51,134.48,134.37,0.17]
[1718851704945,0.17,134.47,134.37,0.17]
[1718851705342,28.0364,134.49,134.39,22.51]
[1718851705343,20.4306,134.49,134.39,22.51]
[1718851705543,15.7719,134.49,134.41,28.6091]
[1718851705730,4.6587,134.52,134.42,45.17]
[1718851705931,24.6587,134.52,134.42,45.17]
[1718851706242,7.4344,134.51,134.43,1.48399368]
[1718851706438,7.4344,134.51,134.42,45.0]
[1718851706646,7.4349,134.5,134.42,45.0]
[1718851706848,7.4346,134.51,134.42,45.0]
[1718851707027,0.34,134.5,134.42,45.0]
[1718851707448,0.17,134.51,134.42,45.0]
[1718851707648,4.6587,134.52,134.43,0.17]
[1718851707844,24.6587,134.52,134.43,0.68]
[1718851708032,24.6587,134.52,134.43,0.17]
[1718851708454,24.6587,134.52,134.43,0.34]
[1718851708650,24.6587,134.52,134.42,45.0]
[1718851708854,7.4347,134.51,134.42,45.0]
[1718851709034,32.0927,134.52,134.42,45.0]
[1718851709437,24.6587,134.52,134.43,0.68]
[1718851709638,24.6587,134.52,134.43,0.34]
[1718851709945,24.6587,134.52,134.43,0.17]
[1718851710341,24.6587,134.52,134.42,45.0]
[1718851710745,32.0925,134.52,134.42,45.0]
[1718851711550,7.9447,134.51,134.42,45.0]
[1718851711750,0.17,134.5,134.42,45.0]
[1718851711950,27.6049,134.5,134.41,6.0891]
[1718851712349,20.17,134.5,134.41,6.0891]
[1718851713349,20.17,134.5,134.42,45.0]
[1718851714156,0.17,134.49,134.42,45.0]
[1718851714358,0.17,134.49,134.38,28.9607]
[1718851714359,7.9458,134.49,134.38,28.9607]
[1718851714541,0.17,134.48,134.39,65.0]
[1718851714740,0.51,134.48,134.39,65.0]
[1718851716360,0.17,134.47,134.38,6.6107]
[1718851716539,0.51,134.47,134.38,6.6107]
[1718851716955,16.536,134.46,134.38,6.6107]
[1718851717845,16.536,134.46,134.39,45.0]
[1718851718240,16.536,134.46,134.38,6.6107]
[1718851718647,12.6065,134.45,134.35,6.5478]
[1718851718853,20.17,134.44,134.35,6.5478]
[1718851719968,20.17,134.44,134.36,45.0]
[1718851720142,27.6085,134.44,134.36,45.0]
[1718851720350,0.51,134.43,134.35,6.5478]
[1718851721651,0.17,134.42,134.35,6.5478]
[1718851724870,0.34,134.43,134.35,6.5478]
[1718851725072,24.6587,134.45,134.36,45.34]
[1718851725761,24.6587,134.45,134.36,45.0]
[1718851725972,0.68,134.44,134.36,45.0]
[1718851726784,0.68,134.44,134.33,0.17]
[1718851726970,0.68,134.44,134.33,65.68]
[1718851727350,0.68,134.44,134.33,88.03]
[1718851728165,24.6587,134.45,134.33,88.03]
[1718851728362,4.6587,134.45,134.33,114.09]
[1718851729451,4.6587,134.45,134.36,22.35]
[1718851729671,4.6587,134.45,134.37,65.0]
[1718851730365,16.366,134.46,134.39,0.17]
[1718851730559,15.997,134.5,134.41,0.17]
[1718851730872,15.997,134.5,134.41,65.34]
[1718851731176,15.997,134.5,134.41,65.51]
[1718851731369,15.997,134.5,134.42,2.22960761]
[1718851731571,15.997,134.5,134.43,2.22944175]
[1718851733156,12.30649383,134.54,134.43,2.22944175]
[1718851733157,15.5974,134.53,134.44,22.52]
[1718851733363,15.5974,134.53,134.46,0.17]
[1718851734357,15.5974,134.53,134.46,1.46740466]
[1718851735261,15.5974,134.53,134.46,0.17]
[1718851735474,15.5974,134.53,134.46,0.68]
[1718851736075,15.5974,134.53,134.46,0.17]
[1718851736276,15.5974,134.53,134.45,87.35]
[1718851737064,15.5974,134.53,134.45,65.0]
[1718851738480,15.5974,134.53,134.43,6.3657]
[1718851738682,0.17,134.52,134.43,6.3657]
[1718851738860,4.6587,134.5,134.39,44.9085]
[1718851739059,4.6587,134.5,134.4,20.0]
[1718851740682,4.6587,134.5,134.41,45.0]
[1718851741568,0.51,134.49,134.41,45.0]
[1718851743585,0.17,134.47,134.35,6.4215]
[1718851743885,0.17,134.45,134.37,7.4344]
[1718851744080,0.68,134.45,134.36,20.0]
[1718851744693,16.1638,134.43,134.32,26.2559]
[1718851744982,20.51,134.42,134.31,22.35]
[1718851745579,20.51,134.42,134.31,44.7]
[1718851745966,20.51,134.42,134.32,20.0]
[1718851746587,0.17,134.41,134.32,20.0]
[1718851746774,7.6101,134.41,134.29,28.4359]
[1718851747094,20.17,134.4,134.3,42.35]
[1718851747292,7.6099,134.41,134.3,20.0]
[1718851747471,20.51,134.4,134.3,20.0]
[1718851747777,15.9938,134.43,134.3,42.35]
[1718851747979,15.9938,134.43,134.32,44.7]
[1718851748186,15.9938,134.43,134.33,20.34]
[1718851748387,20.68,134.42,134.34,45.0]
[1718851748602,20.68,134.42,134.33,45.0]
[1718851748884,20.68,134.42,134.3,0.17]
[1718851749091,20.68,134.42,134.3,20.51]
[1718851749271,0.17,134.4,134.29,50.7859]
[1718851749474,20.0,134.4,134.29,50.7859]
[1718851749675,20.68,134.42,134.29,50.7859]
[1718851750171,20.0,134.42,134.32,22.35]
[1718851750396,15.9938,134.43,134.33,20.0]
[1718851750571,0.17,134.42,134.33,20.0]
[1718851750770,0.17,134.42,134.34,45.0]
[1718851750970,16.1638,134.43,134.34,45.0]
[1718851751379,16.1638,134.43,134.35,1.46842932]
[1718851752095,16.1638,134.43,134.34,45.0]
[1718851752690,20.68,134.42,134.3,22.35]
[1718851752903,20.68,134.42,134.31,20.0]
[1718851753489,21.1105,134.38,134.3,20.0]
[1718851753792,0.17,134.37,134.27,42.35]
[1718851754089,0.17,134.37,134.27,22.35]
[1718851754583,0.17,134.37,134.27,44.7]
[1718851754984,27.7823,134.37,134.27,22.35]
[1718851755309,20.0,134.37,134.27,22.35]
[1718851755494,20.0,134.37,134.28,22.35]
[1718851756500,20.0,134.37,134.28,0.17]
[1718851756686,20.0,134.37,134.27,44.87]
[1718851756687,0.17,134.36,134.27,22.35]
[1718851756881,0.68,134.36,134.27,22.35]
[1718851758100,20.0,134.37,134.27,44.7]
[1718851758299,21.1105,134.38,134.28,20.0]
[1718851758996,0.17,134.37,134.28,20.0]
[1718851759179,21.1105,134.38,134.29,45.0]
[1718851759597,21.1105,134.38,134.3,0.17]
[1718851759776,21.1105,134.38,134.3,0.68]
[1718851759981,21.1105,134.38,134.3,43.03]
[1718851760182,21.1105,134.38,134.32,0.17]
[1718851760490,21.1105,134.38,134.32,20.68]
[1718851760698,21.1105,134.38,134.33,45.0]
[1718851762205,21.1105,134.38,134.32,20.0]
[1718851762386,21.1105,134.38,134.3,22.35]
[1718851762584,21.1105,134.38,134.29,44.7]
[1718851762776,21.1105,134.38,134.3,20.0]
[1718851764283,21.1105,134.38,134.31,45.0]
[1718851764479,21.1105,134.38,134.3,20.0]
[1718851764898,0.34,134.37,134.29,22.35]
[1718851765110,0.34,134.36,134.26,22.35]
[1718851765404,0.34,134.36,134.26,44.7]
[1718851765607,0.17,134.36,134.26,44.7]
[1718851766287,0.17,134.36,134.26,22.35]
[1718851766489,0.17,134.35,134.26,22.35]
[1718851766706,0.51,134.35,134.27,1.47707464]
[1718851766891,0.17,134.34,134.27,1.47707464]
[1718851767212,0.51,134.34,134.27,1.47707464]
[1718851768405,15.745,134.33,134.27,1.47707464]
[1718851768793,15.745,134.33,134.27,46.47707464]
[1718851769189,15.745,134.33,134.27,45.0]
[1718851771088,15.745,134.33,134.28,1.48389543]
[1718851772194,15.745,134.33,134.27,1.48389543]
[1718851773286,15.745,134.33,134.25,21.48410637]
[1718851773493,15.745,134.33,134.26,45.0]
[1718851780419,16.4751,134.36,134.27,43.03]
[1718851780640,16.4751,134.36,134.28,45.0]
[1718851780797,16.4751,134.36,134.29,0.17]
[1718851781717,16.4751,134.36,134.28,45.0]
[1718851783404,23.9178,134.36,134.28,45.0]
[1718851784401,16.4751,134.36,134.28,45.0]
[1718851785516,0.34,134.35,134.28,45.0]
[1718851785722,0.68,134.35,134.29,1.66567211]
[1718851785923,0.68,134.35,134.28,1.66567261]
[1718851789124,8.1232,134.35,134.28,1.66567261]
[1718851789326,8.1232,134.35,134.12,4.78893068]
[1718851789327,12.1029,134.34,134.27,3.14437218]
[1718851789514,12.1029,134.34,134.22,48.887]
[1718851789515,0.34,134.33,134.23,20.0]
[1718851789827,0.51,134.33,134.23,42.35]
[1718851790007,24.6587,134.34,134.23,42.35]
[1718851790618,24.6587,134.34,134.24,0.34]
[1718851791027,0.17,134.33,134.24,45.34]
[1718851791321,0.17,134.33,134.25,20.0]
[1718851791627,0.17,134.33,134.26,45.0]
[1718851793630,0.68,134.33,134.25,20.0]
[1718851793934,0.68,134.33,134.23,22.69]
[1718851793935,0.68,134.33,134.24,20.17]
[1718851794140,0.68,134.33,134.25,45.0]
[1718851794927,15.8918,134.32,134.25,45.0]
[1718851795508,15.8918,134.32,134.27,7.46]
[1718851796514,0.34,134.31,134.27,7.46]
[1718851796716,0.34,134.31,134.25,7.46]
[1718851796717,15.2454,134.31,134.25,7.46]
[1718851796935,7.63,134.3,134.24,7.46]
[1718851797134,7.63,134.3,134.2,1.0]
[1718851797424,7.63,134.3,134.24,7.46]
[1718851798334,7.63,134.3,134.2,1.0]
[1718851798335,7.63,134.28,134.2,1.0]
[1718851798511,0.51,134.27,134.2,1.0]
[1718851798710,0.51,134.27,134.22,7.46]
[1718851799019,28.3591,134.29,134.23,7.46]
[1718851799221,20.0,134.28,134.23,7.46]
[1718851799420,20.0,134.28,134.2,1.0]
[1718851800436,0.51,134.27,134.2,1.0]
[1718851800636,0.34,134.27,134.2,1.0]
[1718851804531,0.17,134.26,134.2,1.0]
[1718851805533,20.0,134.28,134.2,46.0]
[1718851805744,20.8991,134.29,134.2,46.0]
[1718851806943,0.17,134.27,134.2,1.0]
[1718851807135,20.17,134.28,134.2,1.0]
[1718851807327,0.17,134.27,134.2,1.0]
[1718851807541,0.51,134.27,134.2,1.0]
[1718851807857,0.17,134.26,134.2,1.0]
[1718851808026,0.34,134.26,134.2,1.0]
[1718851808743,0.17,134.24,134.2,1.0]
[1718851809128,16.1027,134.25,134.2,1.0]
[1718851809633,0.51,134.24,134.2,1.0]
[1718851809837,0.17,134.23,134.2,1.0]
[1718851810643,4.6587,134.22,134.2,1.0]
[1718851811530,20.5914,134.25,134.2,1.0]
[1718851813545,15.9327,134.25,134.2,1.0]
[1718851813744,15.6075,134.29,134.2,1.0]
[1718851813926,15.6075,134.29,134.21,0.17]
[1718851814128,15.6075,134.29,134.21,0.68]
[1718851814344,15.6075,134.33,134.23,0.17]
[1718851814542,20.0,134.32,134.23,87.86]
[1718851814823,15.6075,134.33,134.26,0.17]
[1718851815028,15.6075,134.33,134.26,88.03]
[1718851815433,15.6075,134.33,134.26,65.68]
[1718851815851,15.6075,134.33,134.26,88.03]
[1718851816048,15.6075,134.33,134.26,65.68]
[1718851816939,15.6075,134.33,134.26,65.0]
[1718851817336,23.0518,134.33,134.23,22.3344]
[1718851817535,23.0518,134.33,134.24,65.0]
[1718851817748,0.17,134.32,134.24,20.0]
[1718851817948,4.6587,134.31,134.21,20.17]
[1718851818334,4.6587,134.31,134.21,20.0]
[1718851819730,0.17,134.29,134.21,20.0]
[1718851819934,15.6475,134.28,134.2,1.0]
[1718851820233,7.7878,134.27,134.2,1.0]
[1718851820535,0.17,134.25,134.2,1.0]
[1718851820728,0.34,134.25,134.2,1.0]
[1718851820930,0.34,134.24,134.2,1.0]
[1718851821532,0.17,134.23,134.2,1.0]
[1718851821733,0.34,134.23,134.2,1.0]
[1718851822646,0.17,134.22,134.2,1.0]
[1718851822868,0.51,134.22,134.2,1.0]
[1718851823250,4.6587,134.24,134.2,1.0]
[1718851823743,24.6587,134.24,134.2,1.0]
[1718851825455,0.51,134.23,134.2,1.0]
[1718851826038,0.17,134.23,134.2,1.0]
[1718851826269,24.6587,134.24,134.2,1.0]
[1718851826835,0.17,134.23,134.2,1.0]
[1718851827054,0.68,134.23,134.2,1.0]
[1718851828845,0.34,134.23,134.2,1.0]
[1718851829035,24.6587,134.24,134.2,1.0]
[1718851829235,4.6587,134.24,134.2,1.0]
[1718851829458,0.34,134.23,134.2,1.0]
[1718851829757,0.51,134.23,134.2,1.0]
[1718851830652,16.4607,134.22,134.2,1.0]
[1718851831047,0.34,134.21,134.2,1.0]
[1718851831267,20.68,134.21,134.2,1.0]
[1718851831475,7.4525,134.19,134.11,20.0]
[1718851831644,7.7927,134.18,134.11,20.0]
[1718851831844,0.34,134.18,134.1,6.0767]
[1718851832257,0.17,134.17,134.1,6.0767]
[1718851832459,0.17,134.17,134.08,38.639]
[1718851832460,0.34,134.17,134.08,38.639]
[1718851832661,0.34,134.17,134.09,20.0]
[1718851832962,20.0,134.17,134.08,60.989]
[1718851833165,0.34,134.18,134.08,60.989]
[1718851833369,20.51,134.19,134.16,7.4537]
[1718851833549,20.51,134.19,134.15,7.4542]
[1718851834138,0.51,134.19,134.08,60.989]
[1718851834373,16.56,134.16,134.09,20.0]
[1718851834549,0.17,134.15,134.06,13.8694]
[1718851834857,0.17,134.15,134.06,6.0767]
[1718851835057,0.17,134.15,134.11,7.4561]
[1718851835443,0.34,134.15,134.1,7.4568]
[1718851835650,0.51,134.14,134.1,7.4568]
[1718851836573,0.34,134.13,134.1,7.457]
[1718851836867,0.17,134.13,134.1,7.457]
[1718851837173,0.17,134.13,134.09,7.4574]
[1718851837555,0.17,134.12,134.07,7.4582]
[1718851837753,0.51,134.12,134.08,7.4582]
[1718851837944,0.17,134.11,134.08,7.4582]
[1718851838145,0.34,134.11,134.06,7.4589]
[1718851838349,15.346,134.1,134.06,7.4589]
[1718851838562,15.516,134.1,134.06,7.4589]
[1718851838747,15.516,134.1,134.07,7.4586]
[1718851839269,15.346,134.1,134.07,7.4582]
[1718851839867,15.346,134.1,134.08,7.4581]
[1718851840072,15.346,134.1,134.09,7.4576]
[1718851840478,15.346,134.1,134.08,7.4579]
[1718851840857,20.0,134.11,134.09,7.4576]
[1718851841062,20.32,134.14,134.04,0.17]
[1718851841255,27.7749,134.14,134.09,7.4574]
[1718851841467,20.32,134.14,134.1,7.4569]
[1718851841768,15.6613,134.14,134.11,7.456]
[1718851842352,15.6613,134.14,134.12,7.4558]
[1718851842956,15.6613,134.14,134.11,7.4563]
[1718851843680,15.6613,134.14,134.1,7.4569]
[1718851844167,4.6587,134.17,134.08,15.5173]
[1718851844381,15.4377,134.18,134.16,7.4534]
[1718851844673,15.4377,134.18,134.17,7.4532]
[1718851845057,15.4377,134.18,134.1,0.17]
[1718851845269,15.4377,134.18,134.1,0.51]
[1718851845452,15.4377,134.18,134.1,0.17]
[1718851845766,0.17,134.17,134.1,1.48924181]
[1718851846069,0.17,134.17,134.03,253.6]
[1718851846070,7.4538,134.16,134.05,45.1576]
[1718851846270,0.34,134.15,134.06,65.0]
[1718851846462,7.7952,134.14,134.06,65.0]
[1718851846658,7.4552,134.14,134.06,45.0]
[1718851846973,7.4552,134.14,134.05,45.1576]
[1718851847485,7.4552,134.14,134.09,7.4573]
[1718851847962,0.17,134.13,134.09,7.4573]
[1718851848146,16.3153,134.12,134.1,7.4569]
[1718851848751,16.3153,134.12,134.02,60.6298]
[1718851848752,16.3153,134.12,134.02,15.8698]
[1718851848970,7.4576,134.1,134.05,7.4598]
[1718851849286,7.4576,134.1,134.01,23.03320142]
[1718851849287,0.34,134.09,134.01,23.03320142]
[1718851849576,0.34,134.09,134.05,7.4595]
[1718851849872,0.17,134.09,134.06,7.4593]
[1718851850075,20.34,134.1,134.06,7.4593]
[1718851850979,20.0,134.1,134.01,45.38320142]
[1718851851269,20.17,134.11,134.08,7.4581]
[1718851851447,20.17,134.11,134.07,7.4585]
[1718851851963,20.17,134.11,134.08,7.4581]
[1718851852470,27.6266,134.11,134.06,7.4592]
[1718851852667,0.17,134.1,134.06,7.4592]
[1718851855266,0.17,134.1,134.07,7.4587]
[1718851856557,0.17,134.1,134.06,7.4593]
[1718851856762,0.34,134.1,134.01,16.80500142]
[1718851856987,27.4566,134.11,134.06,7.4588]
[1718851857158,8.1373,134.1,134.05,7.4596]
[1718851857358,27.4579,134.09,134.04,7.4604]
[1718851857559,0.17,134.08,134.04,7.4604]
[1718851858457,19.6996,134.07,134.01,16.80500142]
[1718851858660,27.9696,134.06,134.01,24.26690142]
[1718851859083,20.51,134.06,134.02,7.4615]
[1718851859265,27.9693,134.06,134.01,24.26690142]
[1718851860066,20.0,134.06,134.03,7.4609]
[1718851860266,20.0,134.06,134.04,7.4603]
[1718851860472,20.0,134.06,134.02,7.4613]
[1718851860959,27.4598,134.06,134.01,16.80500142]
[1718851861164,0.51,134.05,134.01,24.26670142]
[1718851861372,20.0,134.06,134.01,16.80500142]
[1718851861574,19.6996,134.07,134.01,16.80500142]
[1718851861782,16.4606,134.1,134.08,7.4582]
[1718851861988,16.4606,134.1,134.09,7.4576]
[1718851862470,16.4606,134.1,134.02,45.0]
[1718851862874,16.4606,134.1,134.08,7.458]
[1718851863075,16.4606,134.1,134.02,45.0]
[1718851863076,19.9658,134.14,134.09,7.4576]
[1718851863270,20.0,134.13,134.09,7.4576]
[1718851863470,20.0,134.13,134.08,7.458]
[1718851863669,20.0,134.13,134.07,7.4586]
[1718851863670,7.456,134.12,134.07,7.4586]
[1718851863878,20.0,134.11,134.07,7.4586]
[1718851864064,20.0,134.11,134.08,7.458]
[1718851864474,7.4562,134.12,134.07,7.4585]
[1718851864688,27.7956,134.13,134.08,7.4582]
[1718851864986,15.3071,134.14,134.04,44.76]